bitfinex/quotes_SOLUSD_20250624
["timestamp","ask_amount","ask_price","bid_price","bid_amount"]
[1750777317058,6.50519562,145.34,145.32,13.50125608]
[1750777317257,6.50519562,145.33,145.32,13.50125608]
[1750777318874,6.90519562,145.35,145.32,13.50125608]
[1750777319068,0.4,145.35,145.32,30.70466923]
[1750777320970,0.4,145.35,145.32,37.20986485]
[1750777321351,0.4,145.35,145.33,25.15484448]
[1750777321559,0.4,145.35,145.34,25.29700605]
[1750777322760,0.4,145.35,145.32,30.8468308]
[1750777323167,0.4,145.35,145.32,37.35202642]
[1750777324001,6.90519562,145.35,145.32,13.50125608]
[1750777324158,0.4,145.35,145.32,13.50125608]
[1750777324358,6.50519562,145.34,145.32,13.50125608]
[1750777324967,6.50519562,145.33,145.32,13.50125608]
[1750777325360,6.90519562,145.35,145.32,13.50125608]
[1750777325679,0.4,145.35,145.32,13.50125608]
[1750777326480,0.4,145.35,145.32,30.70466923]
[1750777326688,0.4,145.35,145.34,6.50519562]
[1750777326865,0.4,145.35,145.34,6.88041832]
[1750777327775,0.4,145.35,145.34,32.17742437]
[1750777328689,0.4,145.35,145.34,6.88041832]
[1750777328983,0.4,145.35,145.33,13.38608738]
[1750777329369,0.4,145.35,145.33,32.03573624]
[1750777329758,0.4,145.35,145.33,6.88089176]
[1750777330981,0.4,145.35,145.33,13.38608738]
[1750777332068,0.4,145.35,145.33,6.88089176]
[1750777332799,6.90519562,145.35,145.33,6.88089176]
[1750777333660,6.50519562,145.34,145.32,13.50115427]
[1750777333890,1.9122,145.35,145.32,6.62]
[1750777334180,6.50519562,145.33,145.32,6.62]
[1750777335066,26.0,145.3,145.27,6.5]
[1750777335283,6.50519562,145.28,145.27,6.5]
[1750777335588,8.16809562,145.28,145.27,6.5]
[1750777336492,12.51904475,145.28,145.27,6.5]
[1750777337405,12.51904475,145.28,145.27,13.38373373]
[1750777337406,1.6629,145.28,145.27,13.38373373]
[1750777337562,26.0,145.3,145.27,13.38373373]
[1750777337914,10.85614475,145.28,145.27,6.5]
[1750777338265,6.88193049,145.31,145.27,6.5]
[1750777338570,10.85614475,145.28,145.27,6.5]
[1750777341396,36.85614475,145.28,145.27,6.5]
[1750777342285,6.63089691,145.32,145.27,6.5]
[1750777342615,10.85614475,145.29,145.27,13.38373373]
[1750777342785,10.85614475,145.3,145.27,13.38373373]
[1750777343314,27.5064,145.32,145.27,13.38373373]
[1750777343474,27.5064,145.32,145.28,10.85614475]
[1750777343475,1.5064,145.32,145.28,10.85614475]
[1750777343680,147.0,145.35,145.28,10.85614475]
[1750777343681,0.4,145.35,145.31,10.85614475]
[1750777344003,0.4,145.35,145.34,10.85614475]
[1750777344179,0.4,145.35,145.34,17.37614475]
[1750777344376,0.4,145.35,145.34,6.52]
[1750777344683,0.4,145.35,145.34,36.16795518]
[1750777345199,0.4,145.35,145.34,25.31181043]
[1750777345373,0.4,145.35,145.34,13.40041832]
[1750777345819,0.4,145.35,145.34,6.52]
[1750777345979,11.25614475,145.35,145.32,6.52]
[1750777346180,0.4,145.35,145.32,6.52]
[1750777346391,11.25614475,145.35,145.32,6.52]
[1750777347711,11.25614475,145.35,145.33,6.88089176]
[1750777348703,10.85614475,145.34,145.33,6.88089176]
[1750777349004,0.4,145.35,145.33,6.88089176]
[1750777349212,10.85614475,145.34,145.33,6.88089176]
[1750777349593,11.25614475,145.35,145.33,6.88089176]
[1750777350215,0.4,145.35,145.33,6.88089176]
[1750777350412,11.25614475,145.35,145.33,6.88089176]
[1750777350721,0.4,145.35,145.34,10.85614475]
[1750777350899,0.4,145.35,145.34,29.64795518]
[1750777351903,0.4,145.35,145.34,17.73656307]
[1750777352224,0.4,145.35,145.31,17.2042906]
[1750777352225,11.25614475,145.35,145.33,6.88053254]
[1750777352399,10.85614475,145.34,145.33,6.88053254]
[1750777353228,1.9041,145.35,145.33,6.88053254]
[1750777353394,10.85614475,145.34,145.33,6.88053254]
[1750777355024,10.85614475,145.34,145.29,6.88269744]
[1750777355192,10.85614475,145.3,145.29,6.88269744]
[1750777355803,10.85614475,145.31,145.29,6.88269744]
[1750777355997,34.0788,145.35,145.29,6.88269744]
[1750777356299,10.85614475,145.31,145.29,6.88269744]
[1750777356500,10.85614475,145.31,145.28,6.88325991]
[1750777357503,10.85614475,145.3,145.28,6.88325991]
[1750777357791,161.55880768,145.35,145.28,6.88325991]
[1750777357992,161.55880768,145.35,145.27,13.40360167]
[1750777357993,10.85614475,145.29,145.27,13.40360167]
[1750777358309,10.85614475,145.28,145.27,6.52]
[1750777358504,6.88089176,145.33,145.27,6.52]
[1750777358823,10.85614475,145.29,145.27,6.52]
[1750777359023,6.88056181,145.34,145.27,13.40369801]
[1750777359204,10.85614475,145.3,145.27,13.40369801]
[1750777359628,10.85614475,145.29,145.27,13.40369801]
[1750777362019,26.0,145.31,145.27,13.40369801]
[1750777362227,10.85614475,145.29,145.27,13.40369801]
[1750777363413,10.85614475,145.28,145.27,13.40369801]
[1750777363719,10.85614475,145.29,145.27,13.40369801]
[1750777363924,26.0,145.31,145.27,13.40369801]
[1750777364128,36.85614475,145.31,145.27,13.40369801]
[1750777364436,10.85614475,145.32,145.27,41.4691771]
[1750777365134,10.85614475,145.33,145.28,29.64795518]
[1750777365828,10.85614475,145.33,145.29,10.85614475]
[1750777366315,148.5041,145.35,145.3,34.94423834]
[1750777366516,159.36024475,145.35,145.3,34.94423834]
[1750777366712,10.85614475,145.34,145.3,24.08809359]
[1750777368103,10.85614475,145.34,145.3,34.94423834]
[1750777368425,10.85614475,145.34,145.3,24.08809359]
[1750777369320,10.85614475,145.34,145.3,28.06192589]
[1750777369507,0.4,145.35,145.31,29.64795518]
[1750777370724,10.25614475,145.36,145.31,29.64795518]
[1750777370928,146.6,145.39,145.35,10.85614475]
[1750777371243,146.6,145.39,145.36,10.85614475]
[1750777371452,146.6,145.39,145.37,6.87899841]
[1750777372538,1.6549,145.42,145.37,6.87899841]
[1750777372909,10.85614475,145.4,145.37,6.87899841]
[1750777373108,10.85614475,145.41,145.37,6.87899841]
[1750777373333,10.85614475,145.41,145.37,17.73514316]
[1750777373537,10.85614475,145.41,145.37,24.07649445]
[1750777373839,1.6549,145.42,145.37,34.9326392]
[1750777374140,12.51104475,145.42,145.37,24.07649445]
[1750777374337,1.6549,145.42,145.38,10.85614475]
[1750777374639,146.6,145.44,145.38,19.33735321]
[1750777374943,146.6,145.44,145.42,10.85614475]
[1750777375123,1.518,145.46,145.42,6.74]
[1750777375326,1.518,145.46,145.44,6.87568756]
[1750777376245,6.68080414,145.51,145.45,18.79181043]
[1750777376539,12.42374475,145.51,145.45,18.79181043]
[1750777376744,1.5676,145.51,145.45,18.79181043]
[1750777376917,1.5676,145.51,145.46,10.85614475]
[1750777377435,1.5676,145.51,145.46,6.87474219]
[1750777377624,1.5676,145.51,145.46,17.73088694]
[1750777377816,10.85614475,145.5,145.46,6.87474219]
[1750777378013,10.85614475,145.48,145.45,6.8751365]
[1750777378216,1.5676,145.51,145.45,6.8751365]
[1750777378217,27.5676,145.51,145.45,6.8751365]
[1750777378418,10.85614475,145.47,145.45,6.8751365]
[1750777378615,27.5676,145.51,145.45,6.8751365]
[1750777378842,10.85614475,145.46,145.44,6.87564223]
[1750777379037,26.0,145.48,145.43,14.63601963]
[1750777379336,10.85614475,145.44,145.42,6.87628305]
[1750777379512,26.0,145.47,145.42,6.87628305]
[1750777379713,10.85614475,145.45,145.42,6.87628305]
[1750777380847,10.85614475,145.43,145.37,61.77656588]
[1750777381046,10.85614475,145.41,145.38,31.83483835]
[1750777381350,9.85614475,145.41,145.38,31.83483835]
[1750777381552,10.85614475,145.42,145.38,31.83483835]
[1750777381739,1.5811,145.44,145.38,42.6909831]
[1750777381913,8.0912,145.48,145.39,18.79181043]
[1750777382120,10.85614475,145.45,145.41,10.85614475]
[1750777382530,8.0912,145.48,145.39,18.79181043]
[1750777382531,1.5813,145.48,145.42,10.99830632]
[1750777382855,10.85614475,145.47,145.43,10.85614475]
[1750777383358,12.43744475,145.48,145.43,10.85614475]
[1750777383530,1.5813,145.48,145.44,17.73183231]
[1750777383865,10.85614475,145.48,145.45,7.76]
[1750777384233,8.1171,145.51,145.45,7.76]
[1750777384417,10.85614475,145.48,145.45,7.76]
[1750777385057,34.1171,145.51,145.45,7.76]
[1750777385260,10.85614475,145.49,145.45,7.76]
[1750777385448,10.85614475,145.47,145.46,6.87474219]
[1750777387339,10.85614475,145.48,145.46,6.87474219]
[1750777387538,26.0,145.5,145.45,7.76]
[1750777387539,10.85614475,145.47,145.45,7.76]
[1750777387741,10.85614475,145.47,145.38,34.39262622]
[1750777387742,10.85614475,145.46,145.39,7.76]
[1750777387944,10.85614475,145.42,145.39,7.76]
[1750777388773,10.85614475,145.43,145.4,6.87757909]
[1750777389434,146.6,145.46,145.4,6.87757909]
[1750777389435,10.85614475,145.42,145.4,6.87757909]
[1750777389641,10.85614475,145.43,145.4,6.87757909]
[1750777390068,146.6,145.46,145.4,24.07152682]
[1750777390236,10.85614475,145.44,145.4,24.07152682]
[1750777390438,146.6,145.46,145.42,10.85614475]
[1750777390664,157.45614475,145.46,145.42,10.85614475]
[1750777390843,157.45614475,145.46,145.43,6.87616035]
[1750777391452,146.6,145.46,145.43,6.87616035]
[1750777391664,157.45614475,145.46,145.43,6.87616035]
[1750777392056,10.85614475,145.45,145.43,6.87616035]
[1750777392453,26.0,145.47,145.43,24.06656123]
[1750777392637,146.6,145.5,145.43,34.92270598]
[1750777392843,10.85614475,145.49,145.45,6.87521485]
[1750777393456,10.85614475,145.48,145.45,6.87521485]
[1750777394261,10.85614475,145.47,145.45,6.87521485]
[1750777394843,146.6,145.5,145.44,24.06380061]
[1750777395043,10.85614475,145.48,145.44,24.06380061]
[1750777395665,172.6,145.5,145.44,34.91994536]
[1750777395874,10.85614475,145.48,145.44,34.91994536]
[1750777396044,172.6,145.5,145.44,34.91994536]
[1750777396360,10.85614475,145.48,145.44,34.91994536]
[1750777396567,10.85614475,145.48,145.44,24.06380061]
[1750777396779,10.85614475,145.48,145.44,34.91994536]
[1750777396948,172.6,145.5,145.44,34.91994536]
[1750777397153,10.85614475,145.48,145.44,34.91994536]
[1750777397470,10.85614475,145.48,145.44,24.06380061]
[1750777398170,10.85614475,145.47,145.44,24.06380061]
[1750777398461,172.6,145.5,145.44,24.06380061]
[1750777398669,10.85614475,145.49,145.45,10.85614475]
[1750777398876,10.85614475,145.49,145.46,7.76]
[1750777399059,10.85614475,145.49,145.47,6.8742696]
[1750777399470,10.85614475,145.48,145.47,6.8742696]
[1750777401559,10.85614475,145.48,145.46,7.76]
[1750777401748,10.85614475,145.47,145.46,7.76]
[1750777402476,10.85614475,145.47,145.46,14.63474219]
[1750777403381,10.85614475,145.47,145.46,7.76]
[1750777404474,10.85614475,145.47,145.46,14.63474219]
[1750777404681,172.6,145.5,145.46,14.63474219]
[1750777404880,10.85614475,145.47,145.46,7.76]
[1750777405180,157.45614475,145.47,145.39,24.95397287]
[1750777405355,10.85614475,145.43,145.39,24.95397287]
[1750777405555,10.85614475,145.43,145.39,31.832025]
[1750777405882,10.85614475,145.41,145.39,7.76]
[1750777406087,10.85614475,145.4,145.37,44.58]
[1750777406259,10.85614475,145.38,145.37,44.58]
[1750777406466,10.85614475,145.38,145.37,51.45899841]
[1750777406650,18.79181043,145.44,145.37,51.45899841]
[1750777406855,10.85614475,145.38,145.37,51.45899841]
[1750777407877,153.4758597,145.44,145.37,51.45899841]
[1750777408060,10.85614475,145.4,145.37,51.45899841]
[1750777408773,10.85614475,145.39,145.37,51.45899841]
[1750777409556,10.85614475,145.4,145.37,68.65649445]
[1750777410153,146.6,145.44,145.38,10.85614475]
[1750777410376,157.45614475,145.44,145.4,10.85614475]
[1750777410892,157.45614475,145.44,145.39,29.50579361]
[1750777411261,157.45614475,145.44,145.4,24.07152682]
[1750777412093,157.45614475,145.44,145.4,34.92767157]
[1750777412094,146.6,145.44,145.4,34.92767157]
[1750777412263,157.45614475,145.44,145.4,34.92767157]
[1750777412874,157.45614475,145.44,145.4,24.07152682]
[1750777413088,10.85614475,145.43,145.4,6.87757909]
[1750777413395,10.85614475,145.43,145.39,6.87805213]
[1750777414605,146.6,145.44,145.39,6.87805213]
[1750777414606,10.85614475,145.42,145.39,6.87805213]
[1750777414805,153.47571146,145.44,145.39,6.87805213]
[1750777414806,10.85614475,145.41,145.39,6.87805213]
[1750777415303,10.85614475,145.4,145.39,6.87805213]
[1750777415794,10.85614475,145.4,145.38,6.87832963]
[1750777416003,10.85614475,145.39,145.38,6.87832963]
[1750777416308,10.85614475,145.39,145.37,51.45883413]
[1750777416817,10.85614475,145.4,145.37,51.45883413]
[1750777417002,10.85614475,145.39,145.37,51.45883413]
[1750777418190,10.85614475,145.38,145.37,51.45883413]
[1750777419279,10.85614475,145.38,145.37,44.58]
[1750777419475,10.85614475,145.38,145.35,14.63973268]
[1750777419679,10.85614475,145.36,145.35,14.63973268]
[1750777420280,10.85614475,145.36,145.35,7.76]
[1750777420575,26.0,145.4,145.35,50.48945622]
[1750777420776,12.52204475,145.42,145.37,10.85614475]
[1750777420975,12.52204475,145.42,145.38,10.85614475]
[1750777421180,10.85614475,145.41,145.36,18.79181043]
[1750777421401,10.85614475,145.41,145.36,29.64795518]
[1750777421903,38.52204475,145.42,145.37,10.85614475]
[1750777422399,38.52204475,145.42,145.38,6.87852524]
[1750777422698,38.52204475,145.42,145.38,24.07483835]
[1750777423694,10.85614475,145.41,145.38,24.07483835]
[1750777424381,38.52204475,145.42,145.38,17.19631311]
[1750777424781,10.85614475,145.41,145.37,6.87899841]
[1750777425511,10.85614475,145.41,145.37,24.07649445]
[1750777425689,38.52204475,145.42,145.37,34.9326392]
[1750777425893,38.52204475,145.42,145.38,10.85614475]
[1750777426115,38.52204475,145.42,145.37,24.07649445]
[1750777426406,38.52204475,145.42,145.39,6.87805213]
[1750777426705,12.52204475,145.42,145.39,6.87805213]
[1750777427110,12.52204475,145.42,145.39,24.07318246]
[1750777427579,1.6659,145.42,145.39,24.07318246]
[1750777427887,10.85614475,145.44,145.39,34.92932721]
[1750777428712,146.6,145.45,145.39,34.92932721]
[1750777429020,10.85614475,145.44,145.39,34.92932721]
[1750777429518,1.5963,145.46,145.4,18.64964886]
[1750777429696,6.76052558,145.49,145.44,10.85614475]
[1750777429905,6.76052558,145.49,145.4,18.79181043]
[1750777429906,1.6387,145.49,145.46,10.85614475]
[1750777430094,146.6,145.5,145.46,10.85614475]
[1750777430498,146.6,145.5,145.47,6.8742696]
[1750777430689,26.0,145.52,145.47,17.73041435]
[1750777430887,36.85614475,145.52,145.47,34.91608837]
[1750777431305,26.0,145.51,145.47,34.91608837]
[1750777431507,26.0,145.51,145.47,17.73041435]
[1750777431712,36.85614475,145.51,145.47,6.8742696]
[1750777432928,10.85614475,145.5,145.47,6.8742696]
[1750777433096,36.85614475,145.5,145.47,6.8742696]
[1750777433429,10.85614475,145.49,145.47,6.8742696]
[1750777433923,10.85614475,145.48,145.45,7.6]
[1750777434801,10.85614475,145.48,145.45,14.47508986]
[1750777435308,10.85614475,145.48,145.45,7.6]
[1750777435496,10.85614475,145.46,145.45,7.6]
[1750777437522,36.85614475,145.46,145.45,7.6]
[1750777439099,10.85614475,145.47,145.45,7.6]
[1750777439300,10.85614475,145.46,145.45,7.6]
[1750777440716,38.46424475,145.46,145.39,7.34]
[1750777440921,10.85614475,145.41,145.39,7.34]
[1750777441232,10.85614475,145.41,145.39,14.21801504]
[1750777441414,26.0,145.43,145.39,14.21801504]
[1750777441723,10.85614475,145.44,145.39,25.07415979]
[1750777442031,10.85614475,145.43,145.39,42.26929012]
[1750777442824,10.85614475,145.43,145.39,31.41314537]
[1750777443012,10.85614475,145.43,145.39,42.26929012]
[1750777443611,148.2081,145.46,145.39,42.26929012]
[1750777443809,10.85614475,145.44,145.4,10.85614475]
[1750777444129,10.85614475,145.44,145.39,42.26929012]
[1750777444719,10.85614475,145.44,145.39,31.41314537]
[1750777444913,10.85614475,145.44,145.39,42.26929012]
[1750777445314,174.2081,145.46,145.43,10.85614475]
[1750777445315,146.6,145.46,145.43,10.85614475]
[1750777445514,146.6,145.46,145.44,6.87568756]
[1750777447617,146.6,145.46,145.42,10.85614475]
[1750777448506,146.6,145.46,145.43,10.85614475]
[1750777448934,1.5995,145.49,145.43,10.85614475]
[1750777449112,10.85614475,145.48,145.43,10.85614475]
[1750777449539,10.85614475,145.48,145.44,10.85614475]
[1750777449732,10.85614475,145.48,145.45,6.87521485]
[1750777450618,1.5995,145.49,145.45,6.87521485]
[1750777450818,10.85614475,145.48,145.45,6.87521485]
[1750777451021,10.85614475,145.47,145.45,6.87521485]
[1750777451540,10.85614475,145.47,145.43,24.06637323]
[1750777451740,10.85614475,145.47,145.43,34.92251798]
[1750777451940,1.5995,145.49,145.44,10.85614475]
[1750777452237,10.85614475,145.45,145.43,6.87616035]
[1750777452727,10.85614475,145.46,145.43,6.87616035]
[1750777452935,26.0,145.48,145.43,6.87616035]
[1750777453136,10.85614475,145.46,145.43,6.87616035]
[1750777453834,10.85614475,145.46,145.42,6.8766332]
[1750777454047,10.85614475,145.45,145.42,6.8766332]
[1750777454226,179.47389728,145.48,145.42,6.8766332]
[1750777454416,10.85614475,145.44,145.42,6.8766332]
[1750777455333,179.47389728,145.48,145.41,6.87710611]
[1750777455645,10.85614475,145.44,145.41,6.87710611]
[1750777456246,6.49857181,145.45,145.41,6.87710611]
[1750777458343,6.49857181,145.45,145.41,13.37567792]
[1750777458519,6.49857181,145.45,145.41,6.87710611]
[1750777458722,6.49857181,145.45,145.41,13.37567792]
[1750777459231,172.6,145.48,145.41,30.5684432]
[1750777460342,6.49857181,145.47,145.42,6.49857181]
[1750777460919,172.6,145.48,145.42,6.49857181]
[1750777461133,6.49857181,145.45,145.41,6.87710611]
[1750777461326,6.49857181,145.45,145.41,13.37567792]
[1750777461526,172.6,145.48,145.41,13.37567792]
[1750777461741,6.49857181,145.45,145.41,6.87710611]
[1750777461939,172.6,145.48,145.41,6.87710611]
[1750777462149,6.49857181,145.44,145.41,6.87710611]
[1750777462323,153.47383721,145.48,145.39,7.34]
[1750777462324,6.49857181,145.42,145.39,7.34]
[1750777462521,6.49857181,145.41,145.39,7.34]
[1750777463248,6.49857181,145.41,145.4,6.87757909]
[1750777463934,26.0,145.44,145.4,6.87757909]
[1750777464151,6.49857181,145.42,145.4,6.87757909]
[1750777465543,172.6,145.44,145.4,6.87757909]
[1750777465747,6.49857181,145.42,145.4,6.87757909]
[1750777466949,6.49857181,145.41,145.39,14.21784522]
[1750777467333,172.6,145.44,145.39,14.21784522]
[1750777467540,6.49857181,145.42,145.39,14.21784522]
[1750777468752,172.6,145.44,145.39,37.91154736]
[1750777468959,146.6,145.44,145.4,6.49857181]
[1750777469140,146.6,145.48,145.42,6.49857181]
[1750777469333,153.09857181,145.48,145.43,6.49857181]
[1750777469731,1.5995,145.49,145.46,13.373314]
[1750777469944,11.62727585,145.51,145.46,20.593314]
[1750777470147,6.49857181,145.5,145.46,37.78016949]
[1750777470350,146.6,145.52,145.46,37.78016949]
[1750777470537,153.09857181,145.52,145.46,31.28159768]
[1750777471061,153.09857181,145.52,145.47,6.49857181]
[1750777471553,6.49857181,145.51,145.47,6.49857181]
[1750777471741,6.49857181,145.51,145.48,6.87379708]
[1750777471943,6.49857181,145.49,145.46,7.22]
[1750777472146,153.47193525,145.52,145.46,14.0947381]
[1750777472351,10.82444468,145.48,145.46,14.0947381]
[1750777472547,10.82444468,145.48,145.46,6.8747381]
[1750777472858,1.5767,145.47,145.43,7.22]
[1750777473052,10.82444468,145.44,145.43,7.22]
[1750777473451,10.82444468,145.45,145.43,7.22]
[1750777473958,10.82444468,145.45,145.43,14.09610925]
[1750777474127,10.82444468,145.46,145.43,14.09610925]
[1750777475035,10.82444468,145.45,145.43,7.22]
[1750777475232,10.82444468,145.44,145.43,14.09616035]
[1750777475459,10.82444468,145.45,145.43,14.09616035]
[1750777476039,10.82444468,145.46,145.43,14.09616035]
[1750777476464,27.5767,145.47,145.43,14.09616035]
[1750777476645,10.82444468,145.46,145.43,14.09616035]
[1750777477145,38.40114468,145.47,145.43,14.09616035]
[1750777477534,10.82444468,145.46,145.43,14.09616035]
[1750777480041,10.82444468,145.47,145.43,24.92060503]
[1750777482338,146.6,145.48,145.44,10.82444468]
[1750777482655,146.6,145.48,145.46,10.82444468]
[1750777482852,12.39004468,145.5,145.46,10.82444468]
[1750777483363,26.0,145.52,145.46,10.82444468]
[1750777483666,10.82444468,145.51,145.46,10.82444468]
[1750777483970,10.82444468,145.48,145.43,31.28656123]
[1750777484146,10.82444468,145.48,145.43,42.11100591]
[1750777484854,10.82444468,145.48,145.43,31.28656123]
[1750777485053,6.87245348,145.51,145.43,31.28656123]
[1750777485254,10.82444468,145.48,145.44,10.82444468]
[1750777485562,10.82444468,145.49,145.44,10.82444468]
[1750777485769,10.82444468,145.45,145.4,35.23758751]
[1750777485978,10.82444468,145.45,145.4,24.41314283]
[1750777486268,10.82444468,145.45,145.4,35.23758751]
[1750777486466,10.82444468,145.45,145.4,31.29072192]
[1750777486664,10.82444468,145.45,145.41,10.82444468]
[1750777487043,155.01739733,145.48,145.4,31.29072192]
[1750777487259,10.82444468,145.46,145.41,10.82444468]
[1750777487455,10.82444468,145.42,145.37,7.22]
[1750777487655,10.82444468,145.39,145.37,7.22]
[1750777488074,146.6,145.42,145.37,7.22]
[1750777488275,10.82444468,145.41,145.37,7.22]
[1750777488577,10.82444468,145.41,145.37,14.09871631]
[1750777489154,146.6,145.42,145.37,14.09871631]
[1750777489360,10.82444468,145.41,145.37,14.09871631]
[1750777489557,10.82444468,145.4,145.37,14.09871631]
[1750777489764,10.82444468,145.39,145.37,14.09871631]
[1750777490253,10.82444468,145.39,145.37,7.22]
[1750777490448,10.82444468,145.39,145.37,14.09894874]
[1750777490646,10.82444468,145.39,145.37,7.22]
[1750777491052,10.82444468,145.38,145.37,7.22]
[1750777491773,10.82444468,145.4,145.37,14.0988716]
[1750777492153,10.82444468,145.39,145.37,14.0988716]
[1750777493076,1.5704,145.41,145.37,14.0988716]
[1750777493384,10.82444468,145.39,145.37,14.0988716]
[1750777494961,10.82444468,145.4,145.37,14.0988716]
[1750777495678,10.82444468,145.41,145.37,14.0988716]
[1750777495984,10.82444468,145.41,145.37,42.12081232]
[1750777496457,146.6,145.42,145.37,42.12081232]
[1750777496656,10.82444468,145.41,145.37,42.12081232]
[1750777496956,10.82444468,145.41,145.37,31.29636764]
[1750777497161,10.82444468,145.41,145.37,42.12081232]
[1750777497660,157.42444468,145.42,145.37,42.12081232]
[1750777497880,10.82444468,145.4,145.37,14.0988716]
[1750777499179,146.6,145.42,145.37,14.0988716]
[1750777499406,10.82444468,145.4,145.37,14.0988716]
[1750777500284,153.10154095,145.42,145.37,20.60041255]
[1750777500987,153.10154095,145.42,145.37,14.0988716]
[1750777501165,8.04234095,145.47,145.41,6.50154095]
[1750777501380,146.6,145.48,145.45,6.50154095]
[1750777501684,146.6,145.48,145.39,32.2607]
[1750777501685,146.6,145.48,145.46,13.60154095]
[1750777501879,146.6,145.48,145.47,7.1]
[1750777502184,146.6,145.48,145.47,13.9742696]
[1750777502656,1.5408,145.51,145.47,13.9742696]
[1750777502852,1.5408,145.51,145.47,24.79507758]
[1750777503184,146.6,145.54,145.47,31.15994362]
[1750777503380,10.82080798,145.52,145.48,10.82080798]
[1750777503580,10.82080798,145.52,145.47,31.15994362]
[1750777503786,10.82080798,145.52,145.48,10.82080798]
[1750777503993,10.82080798,145.53,145.49,10.82080798]
[1750777504197,146.6,145.54,145.5,6.87285223]
[1750777504374,157.42080798,145.54,145.5,6.87285223]
[1750777504975,10.82080798,145.53,145.5,6.87285223]
[1750777505176,10.82080798,145.52,145.5,6.87285223]
[1750777505369,146.6,145.54,145.5,6.87285223]
[1750777505781,10.82080798,145.52,145.5,6.87285223]
[1750777506183,10.82080798,145.52,145.48,24.0582791]
[1750777506381,10.82080798,145.53,145.48,34.87908708]
[1750777507577,146.6,145.54,145.48,34.87908708]
[1750777507578,146.6,145.54,145.48,24.0582791]
[1750777507894,10.82080798,145.52,145.48,34.87908708]
[1750777508805,10.82080798,145.52,145.48,6.87379708]
[1750777509187,146.6,145.54,145.48,34.87909777]
[1750777509387,10.82080798,145.53,145.49,10.82080798]
[1750777509580,10.82080798,145.53,145.48,34.87909777]
[1750777509770,146.6,145.54,145.48,24.05828979]
[1750777509974,10.82080798,145.52,145.48,34.87909777]
[1750777510202,146.6,145.54,145.49,10.82080798]
[1750777510382,146.6,145.54,145.49,18.79181043]
[1750777510697,146.6,145.54,145.51,10.82080798]
[1750777511286,1.6409,145.59,145.49,18.79181043]
[1750777511287,10.82080798,145.57,145.49,18.79181043]
[1750777511492,10.82080798,145.57,145.52,10.82080798]
[1750777511694,10.82080798,145.56,145.51,10.82080798]
[1750777512288,10.82080798,145.56,145.52,6.87190764]
[1750777512493,10.82080798,145.56,145.52,24.05167674]
[1750777512803,10.82080798,145.56,145.52,34.87248472]
[1750777513001,10.82080798,145.58,145.53,10.82080798]
[1750777514208,10.82080798,145.57,145.55,6.87049124]
[1750777514702,172.6,145.59,145.55,6.87049124]
[1750777514895,183.42080798,145.59,145.55,17.69129922]
[1750777515094,146.6,145.59,145.55,24.04671934]
[1750777515281,10.82080798,145.61,145.55,24.04671934]
[1750777515482,10.82080798,145.61,145.57,10.82080798]
[1750777515688,10.82080798,145.61,145.56,29.61261841]
[1750777515885,10.82080798,145.57,145.55,6.87049124]
[1750777516582,10.82080798,145.57,145.54,13.97075025]
[1750777517306,10.82080798,145.59,145.54,24.79155823]
[1750777517690,26.0,145.6,145.54,24.79155823]
[1750777517892,10.82080798,145.59,145.54,24.79155823]
[1750777518093,10.82080798,145.59,145.54,41.9689665]
[1750777518487,26.0,145.6,145.56,6.87001923]
[1750777518689,1.5016,145.63,145.56,6.87001923]
[1750777518690,8.36851404,145.63,145.56,6.87001923]
[1750777518894,154.96851404,145.63,145.56,6.87001923]
[1750777519110,10.82080798,145.61,145.56,24.04506732]
[1750777519613,6.664,145.66,145.59,10.82080798]
[1750777519798,10.82080798,145.64,145.59,10.82080798]
[1750777520125,8.45618247,145.67,145.58,10.82080798]
[1750777520413,1.5913,145.67,145.57,25.19681043]
[1750777520609,10.82080798,145.66,145.62,6.86718857]
[1750777520811,10.82080798,145.66,145.62,13.96718857]
[1750777521198,1.5913,145.67,145.62,13.96718857]
[1750777521395,10.82080798,145.64,145.62,7.1]
[1750777521704,10.82080798,145.63,145.62,7.1]
[1750777522514,26.0,145.66,145.62,7.1]
[1750777522704,10.82080798,145.63,145.62,7.1]
[1750777523417,10.82080798,145.65,145.62,13.96718857]
[1750777523610,10.82080798,145.66,145.62,13.96718857]
[1750777523815,1.5913,145.67,145.62,24.78799655]
[1750777524010,10.82080798,145.66,145.62,24.78799655]
[1750777524318,10.82080798,145.66,145.62,13.96718857]
[1750777524319,6.47952316,145.66,145.62,13.96718857]